fUST/lending_fUST_20250214
["ID","MTS","AMOUNT","RATE_DAILY","PERIOD"]
[352983831,1739475055223,-91.44427161,0.00014027,2]
[352983843,1739475055336,-500.0,0.00013698,2]
[352983845,1739475055345,-408.55572839,0.00014027,2]
[352983847,1739475055355,-1358.53,0.00014027,2]
[352983849,1739475055364,-500.0,0.00014027,2]
[352983851,1739475055374,-500.0,0.00014027,2]
[352983853,1739475055384,-770.41,0.00014027,2]
[352983855,1739475055393,-696.45,0.00014027,2]
[352983857,1739475055403,-289.572338,0.00014027,2]
[352983859,1739475055412,-500.0,0.00014027,2]
[352983861,1739475055422,-500.0,0.00014027,2]
[352983863,1739475055431,-500.0,0.00014027,2]
[352983865,1739475055440,-215.429075,0.00014027,2]
[352983867,1739475055450,-215.429075,0.00014027,2]
[352983869,1739475055460,-500.0,0.00014027,2]
[352983871,1739475055471,-500.0,0.00014027,2]
[352983874,1739475055482,-500.0,0.00014027,2]
[352983876,1739475055492,-500.0,0.00014027,2]
[352983878,1739475055501,-500.0,0.00014027,2]
[352983880,1739475055511,-500.0,0.00014027,2]
[352983882,1739475055520,-1076.78,0.00014027,2]
[352983883,1739475055529,-151.0,0.00014027,2]
[352983885,1739475055539,-574.289706,0.00014027,2]
[352983888,1739475055549,-500.0,0.00014027,2]
[352983889,1739475055558,-574.289706,0.00014027,2]
[352983892,1739475055568,-500.0,0.00014027,2]
[352983893,1739475055578,-1417.18,0.00014027,2]
[352983896,1739475055587,-500.0,0.00014027,2]
[352983898,1739475055597,-671.2,0.00014027,2]
[352983900,1739475055607,-581.63,0.00014027,2]
[352983902,1739475055616,-806.7,0.00014027,2]
[352983904,1739475055626,-151.0,0.00014027,2]
[352983906,1739475055635,-2618.02,0.00014027,2]
[352983908,1739475055646,-500.0,0.00014027,2]
[352983910,1739475055655,-4154.59,0.00014027,2]
[352983912,1739475055665,-500.0,0.00014027,2]
[352983914,1739475055674,-500.0,0.00014027,2]
[352983916,1739475055683,-151.0,0.00014027,2]
[352983918,1739475055692,-2233.08,0.00014027,2]
[352983920,1739475055702,-500.0,0.00014027,2]
[352983922,1739475055711,-500.0,0.00014027,2]
[352983924,1739475055721,-500.0,0.00014027,2]
[352983926,1739475055730,-1275.0,0.00014027,2]
[352983928,1739475055740,-872.37,0.00014027,2]
[352983930,1739475055749,-500.0,0.00014027,2]
[352983932,1739475055761,-3092.65,0.00014027,2]
[352983934,1739475055771,-186.414906,0.00014027,2]
[352983936,1739475055780,-500.0,0.00014027,2]
[352983938,1739475055789,-186.414906,0.00014027,2]
[352983940,1739475055799,-500.0,0.00014027,2]
[352983941,1739475055807,-534.23803027,0.00014027,2]
[352983944,1739475055817,-500.0,0.00014027,2]
[352983945,1739475055827,-4304.73,0.00014027,2]
[352983948,1739475055838,-500.0,0.00014027,2]
[352983950,1739475055848,-1856.21,0.00014027,2]
[352983952,1739475055858,-766.36,0.00014027,2]
[352983954,1739475055869,-500.0,0.00014027,2]
[352983956,1739475055879,-500.0,0.00014027,2]
[352983958,1739475055888,-1291.66,0.00014027,2]
[352983960,1739475055898,-151.0,0.00014027,2]
[352983962,1739475055907,-1162.65,0.00014027,2]
[352983964,1739475055917,-10291.65,0.00014027,2]
[352983966,1739475055927,-500.0,0.00014027,2]
[352983968,1739475055936,-757.4,0.00014027,2]
[352983970,1739475055946,-500.0,0.00014027,2]
[352983972,1739475055957,-1125.5,0.00014027,2]
[352983974,1739475055966,-500.0,0.00014027,2]
[352983976,1739475055975,-31380.31,0.00014027,2]
[352983978,1739475055985,-923.57,0.00014027,2]
[352983980,1739475055995,-1121.19,0.00014027,2]
[352983982,1739475056005,-548.60553494,0.00014027,2]
[352983984,1739475056014,-1780.54,0.00014027,2]
[352983986,1739475056023,-500.0,0.00014027,2]
[352983988,1739475056032,-500.0,0.00014027,2]
[352983990,1739475056041,-1585.84,0.00014027,2]
[352983992,1739475056051,-783.77,0.00014027,2]
[352983994,1739475056060,-500.0,0.00014027,2]
[352983996,1739475056070,-517.56971973,0.00014027,2]
[352983998,1739475056079,-500.0,0.00014027,2]
[352984000,1739475056088,-951.6,0.00014027,2]
[352984002,1739475056098,-567.09,0.00014027,2]
[352984004,1739475056108,-500.0,0.00014027,2]
[352984006,1739475056120,-14092.7,0.00014027,2]
[352984008,1739475056129,-500.0,0.00014027,2]
[352984010,1739475056138,-500.0,0.00014027,2]
[352984012,1739475056147,-500.0,0.00014027,2]
[352984014,1739475056157,-500.0,0.00014027,2]
[352984016,1739475056167,-151.0,0.00014027,2]
[352984018,1739475056176,-500.0,0.00014027,2]
[352984020,1739475056186,-673.23,0.00014027,2]
[352984022,1739475056196,-508.58,0.00014027,2]
[352984024,1739475056206,-839.97,0.00014027,2]
[352984026,1739475056215,-672.65,0.00014027,2]
[352984028,1739475056224,-808.75,0.00014027,2]
[352984030,1739475056234,-500.0,0.00014027,2]
[352984032,1739475056248,-500.0,0.00014027,2]
[352984034,1739475056258,-504.2298,0.00014027,2]
[352984036,1739475056267,-1326.14,0.00014027,2]
[352984038,1739475056277,-624.69,0.00014027,2]
[352984040,1739475056288,-2281.73,0.00014027,2]
[352984042,1739475056298,-500.0,0.00014027,2]
[352984044,1739475056308,-241.6812,0.00014027,2]
[352984046,1739475056318,-580.31,0.00014027,2]
[352984048,1739475056329,-2835.15,0.00014027,2]
[352984050,1739475056339,-500.0,0.00014027,2]
[352984051,1739475056348,-241.6812,0.00014027,2]
[352984054,1739475056360,-550.57,0.00014027,2]
[352984055,1739475056370,-441.86751855,0.00014027,2]
[352984057,1739475056380,-567.42,0.00014027,2]
[352984060,1739475056390,-1080.31,0.00014027,2]
[352984062,1739475056401,-1331.93,0.00014027,2]
[352984064,1739475056410,-500.0,0.00014027,2]
[352984066,1739475056421,-6039.11,0.00014027,2]
[352984068,1739475056431,-878.090959,0.00014027,2]
[352984070,1739475056440,-500.0,0.00014027,2]
[352984072,1739475056450,-878.090959,0.00014027,2]
[352984074,1739475056459,-580.24917306,0.00014027,2]
[352984076,1739475056468,-585.93,0.00014027,2]
[352984078,1739475056479,-500.0,0.00014027,2]
[352984092,1739475056590,-500.0,0.00014027,2]
[352984094,1739475056618,-552.7,0.00014027,2]
[352984096,1739475056628,-1143.99,0.00014027,2]
[352984098,1739475056637,-803.51,0.00014027,2]
[352984100,1739475056648,-500.0,0.00014027,2]
[352984102,1739475056658,-564.04,0.00014027,2]
[352984104,1739475056667,-500.0,0.00014027,2]
[352984106,1739475056677,-243.89281174,0.00014027,2]
[352984108,1739475056687,-500.0,0.00014027,2]
[352984111,1739475056697,-2823.75,0.00014027,2]
[352984113,1739475056706,-635.95312818,0.00014043,2]
[352984114,1739475056716,-500.67171138,0.00014043,2]
[352984117,1739475056726,-536.75907559,0.00014043,2]
[352984119,1739475056736,-314.0,0.00014068,2]
[352984121,1739475056747,-314.0,0.00014068,2]
[352984122,1739475056757,-349.0,0.00014068,2]
[352984124,1739475056767,-314.0,0.00014068,2]
[352984126,1739475056776,-349.0,0.00014068,2]
[352984128,1739475056786,-330.98,0.00014068,2]
[352984131,1739475056795,-349.0,0.00014068,2]
[352984133,1739475056807,-349.0,0.00014068,2]
[352984135,1739475056816,-349.0,0.00014068,2]
[352984137,1739475056825,-349.0,0.00014068,2]
[352984139,1739475056836,-349.0,0.00014068,2]
[352984141,1739475056846,-420.06921299,0.00014068,2]
[352984143,1739475056856,-151.0,0.00014091,2]
[352984145,1739475056866,-151.0,0.00014091,2]
[352984147,1739475056876,-215.860309,0.000141,2]
[352984149,1739475056885,-566.97737449,0.00014108,2]
[352984151,1739475056895,-253.66747766,0.00014108,2]
[352984152,1739475056904,-574.289706,0.00014108,2]
[352984155,1739475056914,-574.289706,0.00014108,2]
[352984156,1739475056924,-151.0,0.00014109,2]
[352984159,1739475056934,-500.0,0.00014109,2]
[352984161,1739475056944,-151.0,0.00014109,2]
[352984163,1739475056954,-500.0,0.00014109,2]
[352984165,1739475056964,-500.0,0.00014109,2]
[352984167,1739475056973,-500.0,0.00014109,2]
[352984169,1739475056983,-628.24635489,0.00014109,2]
[352984171,1739475056993,-500.0,0.00014109,2]
[352984173,1739475057003,-500.0,0.00014109,2]
[352984175,1739475057012,-500.0,0.00014109,2]
[352984177,1739475057022,-500.0,0.00014109,2]
[352984179,1739475057031,-500.0,0.00014109,2]
[352984180,1739475057041,-500.0,0.00014109,2]
[352984183,1739475057051,-367.17872158,0.00014109,2]
[352984184,1739475057060,-151.0,0.00014109,2]
[352984186,1739475057070,-151.0,0.00014109,2]
[352984188,1739475057080,-151.0,0.00014109,2]
[352984190,1739475057089,-500.0,0.00014109,2]
[352984193,1739475057099,-500.0,0.00014109,2]
[352984195,1739475057109,-500.0,0.00014109,2]
[352984197,1739475057119,-768.77,0.00014109,2]
[352984199,1739475057128,-500.0,0.00014109,2]
[352984201,1739475057138,-500.0,0.00014109,2]
[352984203,1739475057148,-246.619894,0.00014109,2]
[352984205,1739475057158,-246.619894,0.00014109,2]
[352984207,1739475057167,-437.06978246,0.00014109,2]
[352984209,1739475057177,-500.0,0.00014109,2]
[352984211,1739475057187,-500.0,0.00014109,2]
[352984213,1739475057196,-676.76,0.00014109,2]
[352984215,1739475057206,-567.0,0.00014109,2]
[352984217,1739475057215,-500.0,0.00014109,2]
[352984219,1739475057225,-650.61,0.00014109,2]
[352984221,1739475057235,-500.0,0.00014109,2]
[352984223,1739475057244,-537.4,0.00014109,2]
[352984225,1739475057253,-500.0,0.00014109,2]
[352984227,1739475057263,-633.82,0.00014109,2]
[352984229,1739475057272,-579.09,0.00014109,2]
[352984231,1739475057282,-500.0,0.00014109,2]
[352984233,1739475057292,-500.0,0.00014109,2]
[352984235,1739475057301,-500.0,0.00014109,2]
[352984237,1739475057311,-500.0,0.00014109,2]
[352984239,1739475057320,-500.0,0.00014109,2]
[352984241,1739475057330,-971.08,0.00014109,2]
[352984243,1739475057340,-500.0,0.00014109,2]
[352984245,1739475057349,-658.14,0.00014109,2]
[352984247,1739475057359,-500.0,0.00014109,2]
[352984249,1739475057368,-500.0,0.00014109,2]
[352984251,1739475057378,-500.0,0.00014109,2]
[352984253,1739475057388,-1333.9,0.00014109,2]
[352984255,1739475057398,-500.0,0.00014109,2]
[352984257,1739475057407,-500.0,0.00014109,2]
[352984259,1739475057418,-1358.53,0.00014109,2]
[352984261,1739475057427,-500.0,0.00014109,2]
[352984263,1739475057437,-500.0,0.00014109,2]
[352984264,1739475057446,-770.41,0.00014109,2]
[352984265,1739475057456,-696.45,0.00014109,2]
[352984266,1739475057466,-500.0,0.00014109,2]
[352984267,1739475057478,-150.23,0.00014109,2]
[352984268,1739475057487,-573.61855041,0.00014109,2]
[352984269,1739475057496,-500.0,0.00014109,2]
[352984270,1739475057506,-215.429075,0.00014109,2]
[352984271,1739475057518,-215.429075,0.00014109,2]
[352984272,1739475057527,-248.13700497,0.00014109,2]
[352984273,1739475057537,-500.0,0.00014109,2]
[352984274,1739475057547,-500.0,0.00014109,2]
[352984275,1739475057558,-500.0,0.00014109,2]
[352984276,1739475057567,-500.0,0.00014109,2]
[352984277,1739475057577,-500.0,0.00014109,2]
[352984279,1739475057587,-1076.78,0.00014109,2]
[352984281,1739475057596,-500.0,0.00014109,2]
[352984283,1739475057606,-500.0,0.00014109,2]
[352984285,1739475057616,-1417.18,0.00014109,2]
[352984288,1739475057626,-500.0,0.00014109,2]
[352984290,1739475057636,-671.2,0.00014109,2]
[352984292,1739475057645,-581.63,0.00014109,2]
[352984294,1739475057654,-806.7,0.00014109,2]
[352984296,1739475057663,-281.122368,0.00014109,2]
[352984298,1739475057673,-2618.02,0.00014109,2]
[352984300,1739475057682,-500.0,0.00014109,2]
[352984302,1739475057691,-4154.59,0.00014109,2]
[352984304,1739475057700,-500.0,0.00014109,2]
[352984306,1739475057710,-500.0,0.00014109,2]
[352984308,1739475057719,-500.0,0.00014109,2]
[352984310,1739475057729,-2233.08,0.00014109,2]
[352984312,1739475057738,-500.0,0.00014109,2]
[352984314,1739475057747,-500.0,0.00014109,2]
[352984316,1739475057756,-500.0,0.00014109,2]
[352984318,1739475057767,-1275.0,0.00014109,2]
[352984320,1739475057777,-872.37,0.00014109,2]
[352984322,1739475057787,-500.0,0.00014109,2]
[352984324,1739475057798,-3092.65,0.00014109,2]
[352984326,1739475057808,-186.414906,0.00014109,2]
[352984328,1739475057817,-235.93520221,0.00014109,2]
[352984330,1739475057826,-186.414906,0.00014109,2]
[352984332,1739475057836,-500.0,0.00014109,2]
[352984334,1739475057854,-500.0,0.00014109,2]
[352984337,1739475057866,-4304.73,0.00014109,2]
[352984339,1739475057876,-500.0,0.00014109,2]
[352984341,1739475057886,-1856.21,0.00014109,2]
[352984343,1739475057895,-766.36,0.00014109,2]
[352984345,1739475057905,-214.43335683,0.00014109,2]
[352984347,1739475057914,-500.0,0.00014109,2]
[352984349,1739475057923,-1291.66,0.00014109,2]
[352984351,1739475057933,-151.0,0.00014109,2]
[352984353,1739475057942,-1162.65,0.00014109,2]
[352984355,1739475057951,-10291.65,0.00014109,2]
[352984357,1739475057961,-500.0,0.00014109,2]
[352984359,1739475057970,-757.4,0.00014109,2]
[352984361,1739475057979,-500.0,0.00014109,2]
[352984362,1739475057988,-1125.5,0.00014109,2]
[352984364,1739475057997,-500.0,0.00014109,2]
[352984366,1739475058007,-31380.31,0.00014109,2]
[352984368,1739475058016,-923.57,0.00014109,2]
[352984370,1739475058026,-1121.19,0.00014109,2]
[352984372,1739475058035,-500.0,0.00014109,2]
[352984374,1739475058046,-1780.54,0.00014109,2]
[352984376,1739475058057,-500.0,0.00014109,2]
[352984378,1739475058066,-500.0,0.00014109,2]
[352984380,1739475058076,-1585.84,0.00014109,2]
[352984383,1739475058086,-500.0,0.00014109,2]
[352984384,1739475058095,-783.77,0.00014109,2]
[352984386,1739475058105,-500.0,0.00014109,2]
[352984389,1739475058115,-200.4148637,0.00014109,2]
[352984391,1739475058124,-150.23,0.00014109,2]
[352984393,1739475058134,-150.23,0.00014109,2]
[352984395,1739475058145,-150.23,0.00014109,2]
[352984397,1739475058155,-150.23,0.00014109,2]
[352984398,1739475058165,-500.0,0.00014109,2]
[352984400,1739475058176,-951.6,0.00014109,2]
[352984402,1739475058185,-567.09,0.00014109,2]
[352984404,1739475058195,-500.0,0.00014109,2]
[352984407,1739475058205,-14092.7,0.00014109,2]
[352984409,1739475058215,-964.0,0.00014109,2]
[352984411,1739475058225,-500.0,0.00014109,2]
[352984413,1739475058237,-500.0,0.00014109,2]
[352984414,1739475058247,-500.0,0.00014109,2]
[352984416,1739475058257,-256.93517649,0.00014109,2]
[352984418,1739475058266,-151.0,0.00014109,2]
[352984420,1739475058275,-500.0,0.00014109,2]
[352984422,1739475058284,-673.23,0.00014109,2]
[352984424,1739475058293,-508.58,0.00014109,2]
[352984426,1739475058305,-839.97,0.00014109,2]
[352984428,1739475058314,-672.65,0.00014109,2]
[352984430,1739475058324,-808.75,0.00014109,2]
[352984432,1739475058334,-253.67147311,0.00014109,2]
[352984434,1739475058343,-500.0,0.00014109,2]
[352984436,1739475058353,-1326.14,0.00014109,2]
[352984439,1739475058363,-624.69,0.00014109,2]
[352984441,1739475058372,-2281.73,0.00014109,2]
[352984443,1739475058382,-500.0,0.00014109,2]
[352984445,1739475058391,-241.6812,0.00014109,2]
[352984447,1739475058400,-580.31,0.00014109,2]
[352984449,1739475058409,-2835.15,0.00014109,2]
[352984451,1739475058419,-500.0,0.00014109,2]
[352984453,1739475058428,-241.6812,0.00014109,2]
[352984455,1739475058438,-550.57,0.00014109,2]
[352984457,1739475058447,-567.42,0.00014109,2]
[352984459,1739475058457,-1080.31,0.00014109,2]
[352984460,1739475058468,-1331.93,0.00014109,2]
[352984463,1739475058480,-500.0,0.00014109,2]
[352984465,1739475058490,-6039.11,0.00014109,2]
[352984467,1739475058500,-878.090959,0.00014109,2]
[352984469,1739475058509,-500.0,0.00014109,2]
[352984471,1739475058518,-878.090959,0.00014109,2]
[352984473,1739475058527,-585.93,0.00014109,2]
[352984475,1739475058537,-500.0,0.00014109,2]
[352984477,1739475058547,-437.84854412,0.00014109,2]
[352984479,1739475058557,-552.7,0.00014109,2]
[352984481,1739475058566,-1143.99,0.00014109,2]
[352984482,1739475058575,-803.51,0.00014109,2]
[352984485,1739475058585,-500.0,0.00014109,2]
[352984486,1739475058595,-500.0,0.00014109,2]
[352984488,1739475058604,-564.04,0.00014109,2]
[352984491,1739475058613,-204.86180728,0.00014109,2]
[352984493,1739475058622,-160.53571384,0.00014109,2]
[352984495,1739475058632,-500.0,0.00014109,2]
[352984496,1739475058641,-500.0,0.00014109,2]
[352984498,1739475058651,-150.23,0.00014109,2]
[352984500,1739475058660,-497.66290576,0.00014109,2]
[352984502,1739475058670,-150.23,0.00014109,2]
[352984504,1739475058680,-152.35204526,0.00014109,2]
[352984506,1739475058690,-2823.75,0.00014109,2]
[352984508,1739475058699,-150.0,0.0001412,2]
[352984510,1739475058709,-187.505,0.0001412,2]
[352984513,1739475058719,-2965.3731186,0.00014123,2]
[352984515,1739475058728,-500.0,0.00014126,2]
[352984517,1739475058739,-162.86530673,0.00014126,2]
[352984518,1739475058748,-500.21011627,0.00014126,2]
[352984520,1739475058757,-500.0,0.00014134,2]
[352984523,1739475058767,-501.10917799,0.00014134,2]
[352984525,1739475058776,-500.0,0.00014134,2]
[352984526,1739475058785,-151.0,0.00014134,2]
[352984529,1739475058795,-500.0,0.00014146,2]
[352984531,1739475058807,-500.0,0.00014191,2]
[352984533,1739475058816,-500.0,0.00014191,2]
[352984535,1739475058825,-500.0,0.00014191,2]
[352984537,1739475058835,-570.42840589,0.00014191,2]
[352984539,1739475058845,-500.0,0.00014191,2]
[352984541,1739475058854,-500.0,0.00014191,2]
[352984543,1739475058864,-500.0,0.00014191,2]
[352984545,1739475058873,-267.55617009,0.00014191,2]
[352984547,1739475058883,-500.0,0.00014191,2]
[352984549,1739475058892,-500.0,0.00014191,2]
[352984551,1739475058901,-151.0,0.00014191,2]
[352984553,1739475058911,-151.0,0.00014191,2]
[352984555,1739475058920,-151.0,0.00014191,2]
[352984557,1739475058929,-500.0,0.00014191,2]
[352984559,1739475058938,-500.0,0.00014191,2]
[352984561,1739475058948,-500.0,0.00014191,2]
[352984563,1739475058956,-768.77,0.00014191,2]
[352984565,1739475058965,-500.0,0.00014191,2]
[352984567,1739475058975,-500.0,0.00014191,2]
[352984569,1739475058984,-246.619894,0.00014191,2]
[352984571,1739475058994,-246.619894,0.00014191,2]
[352984572,1739475059003,-500.0,0.00014191,2]
[352984574,1739475059012,-500.0,0.00014191,2]
[352984577,1739475059022,-676.76,0.00014191,2]
[352984582,1739475059060,-567.0,0.00014191,2]
[352984584,1739475059069,-500.0,0.00014191,2]
[352984586,1739475059079,-650.61,0.00014191,2]
[352984588,1739475059089,-500.0,0.00014191,2]
[352984590,1739475059098,-537.4,0.00014191,2]
[352984592,1739475059107,-500.0,0.00014191,2]
[352984594,1739475059116,-633.82,0.00014191,2]
[352984596,1739475059126,-579.09,0.00014191,2]
[352984598,1739475059135,-500.0,0.00014191,2]
[352984600,1739475059145,-500.0,0.00014191,2]
[352984602,1739475059154,-500.0,0.00014191,2]
[352984604,1739475059164,-461.54707612,0.00014191,2]
[352984606,1739475059174,-500.0,0.00014191,2]
[352984608,1739475059183,-971.08,0.00014191,2]
[352984610,1739475059192,-500.0,0.00014191,2]
[352984612,1739475059201,-658.14,0.00014191,2]
[352984614,1739475059210,-500.0,0.00014191,2]
[352984616,1739475059219,-500.0,0.00014191,2]
[352984618,1739475059229,-643.63938864,0.00014191,2]
[352984620,1739475059238,-1333.9,0.00014191,2]
[352984622,1739475059247,-500.0,0.00014191,2]
[352984624,1739475059256,-500.0,0.00014191,2]
[352984626,1739475059265,-1358.53,0.00014191,2]
[352984628,1739475059274,-500.0,0.00014191,2]
[352984630,1739475059284,-500.0,0.00014191,2]
[352984632,1739475059293,-770.41,0.00014191,2]
[352984633,1739475059302,-696.45,0.00014191,2]
[352984636,1739475059311,-500.0,0.00014191,2]
[352984637,1739475059320,-500.0,0.00014191,2]
[352984639,1739475059329,-215.429075,0.00014191,2]
[352984641,1739475059339,-215.429075,0.00014191,2]
[352984643,1739475059348,-500.0,0.00014191,2]
[352984645,1739475059357,-500.0,0.00014191,2]
[352984647,1739475059367,-500.0,0.00014191,2]
[352984649,1739475059376,-500.0,0.00014191,2]
[352984651,1739475059386,-500.0,0.00014191,2]
[352984653,1739475059395,-1076.78,0.00014191,2]
[352984655,1739475059404,-574.289706,0.00014191,2]
[352984657,1739475059413,-500.0,0.00014191,2]
[352984659,1739475059423,-574.289706,0.00014191,2]
[352984661,1739475059433,-500.0,0.00014191,2]
[352984663,1739475059442,-1417.18,0.00014191,2]
[352984665,1739475059451,-516.15644462,0.00014191,2]
[352984668,1739475059462,-671.2,0.00014191,2]
[352984669,1739475059472,-581.63,0.00014191,2]
[352984672,1739475059485,-806.7,0.00014191,2]
[352984673,1739475059494,-2618.02,0.00014191,2]
[352984676,1739475059504,-231.28713242,0.00014191,2]
[352984678,1739475059514,-4154.59,0.00014191,2]
[352984680,1739475059524,-500.0,0.00014191,2]
[352984682,1739475059533,-500.0,0.00014191,2]
[352984684,1739475059542,-2233.08,0.00014191,2]
[352984686,1739475059552,-500.0,0.00014191,2]
[352984688,1739475059563,-500.0,0.00014191,2]
[352984690,1739475059572,-500.0,0.00014191,2]
[352984692,1739475059581,-1275.0,0.00014191,2]
[352984694,1739475059591,-872.37,0.00014191,2]
[352984695,1739475059600,-500.0,0.00014191,2]
[352984697,1739475059609,-3092.65,0.00014191,2]
[352984700,1739475059619,-186.414906,0.00014191,2]
[352984702,1739475059628,-186.414906,0.00014191,2]
[352984703,1739475059638,-500.0,0.00014191,2]
[352984705,1739475059648,-500.0,0.00014191,2]
[352984706,1739475059658,-4304.73,0.00014191,2]
[352984707,1739475059667,-171.94680526,0.00014191,2]
[352984708,1739475059677,-1856.21,0.00014191,2]
[352984709,1739475059686,-766.36,0.00014191,2]
[352984710,1739475059695,-500.0,0.00014191,2]
[352984711,1739475059704,-1291.66,0.00014191,2]
[352984712,1739475059713,-1162.65,0.00014191,2]
[352984713,1739475059723,-500.0,0.00014191,2]
[352984714,1739475059732,-10291.65,0.00014191,2]
[352984715,1739475059741,-757.4,0.00014191,2]
[352984716,1739475059750,-500.0,0.00014191,2]
[352984717,1739475059761,-1125.5,0.00014191,2]
[352984718,1739475059771,-500.0,0.00014191,2]
[352984719,1739475059780,-923.57,0.00014191,2]
[352984721,1739475059790,-31380.31,0.00014191,2]
[352984723,1739475059801,-1121.19,0.00014191,2]
[352984725,1739475059812,-1780.54,0.00014191,2]
[352984727,1739475059822,-500.0,0.00014191,2]
[352984729,1739475059832,-500.0,0.00014191,2]
[352984731,1739475059842,-1585.84,0.00014191,2]
[352984733,1739475059852,-783.77,0.00014191,2]
[352984735,1739475059862,-500.0,0.00014191,2]
[352984737,1739475059876,-951.6,0.00014191,2]
[352984739,1739475059886,-567.09,0.00014191,2]
[352984741,1739475059895,-500.0,0.00014191,2]
[352984743,1739475059905,-14092.7,0.00014191,2]
[352984745,1739475059915,-500.0,0.00014191,2]
[352984747,1739475059924,-500.0,0.00014191,2]
[352984749,1739475059934,-522.27245316,0.00014191,2]
[352984751,1739475059943,-500.0,0.00014191,2]
[352984753,1739475059952,-673.23,0.00014191,2]
[352984755,1739475059962,-508.58,0.00014191,2]
[352984757,1739475059971,-839.97,0.00014191,2]
[352984759,1739475059980,-672.65,0.00014191,2]
[352984761,1739475059990,-808.75,0.00014191,2]
[352984763,1739475059999,-500.0,0.00014191,2]
[352984765,1739475060009,-1326.14,0.00014191,2]
[352984767,1739475060019,-624.69,0.00014191,2]
[352984769,1739475060029,-2281.73,0.00014191,2]
[352984771,1739475060039,-500.0,0.00014191,2]
[352984773,1739475060048,-241.6812,0.00014191,2]
[352984775,1739475060059,-580.31,0.00014191,2]
[352984777,1739475060070,-2835.15,0.00014191,2]
[352984779,1739475060080,-500.0,0.00014191,2]
[352984781,1739475060090,-241.6812,0.00014191,2]
[352984783,1739475060100,-550.57,0.00014191,2]
[352984785,1739475060109,-567.42,0.00014191,2]
[352984787,1739475060119,-1080.31,0.00014191,2]
[352984789,1739475060129,-1331.93,0.00014191,2]
[352984791,1739475060138,-500.0,0.00014191,2]
[352984793,1739475060148,-6039.11,0.00014191,2]
[352984795,1739475060158,-878.090959,0.00014191,2]
[352984797,1739475060168,-500.0,0.00014191,2]
[352984799,1739475060178,-878.090959,0.00014191,2]
[352984802,1739475060188,-585.93,0.00014191,2]
[352984804,1739475060197,-500.0,0.00014191,2]
[352984806,1739475060207,-552.7,0.00014191,2]
[352984808,1739475060217,-1143.99,0.00014191,2]
[352984810,1739475060227,-803.51,0.00014191,2]
[352984812,1739475060237,-500.0,0.00014191,2]
[352984814,1739475060247,-564.04,0.00014191,2]
[352984816,1739475060256,-500.0,0.00014191,2]
[352984818,1739475060266,-2823.75,0.00014191,2]
[352984820,1739475060277,-465.35863908,0.00014193,2]
[352984822,1739475060287,-151.0,0.00014193,2]
[352984824,1739475060297,-151.0,0.00014193,2]
[352984826,1739475060309,-1000.64295477,0.00014221,2]
[352984828,1739475060319,-1000.0,0.00014221,2]
[352984830,1739475060329,-1005.10618827,0.00014221,2]